{"text_format":"1","workbook":"xlsx","n_sheets":6,"sheets":["Forside","Blodtryksskema","TomtSkema","Indtastning","Indstillinger","Patientvejledning"],"not_rendered":{"charts":0,"images":12,"macros":1,"external_links":0,"defined_names":3,"comments":0,"pivot_tables":0},"unopened":[],"bounds":{"document_bytes":16777216,"sheet_cells":100000,"rows_first":2000,"rows_last":500,"rows_between":2000,"halvings":0,"cell_chars":16384,"cell_head_chars":4096},"cells_cut":0,"cells_raw":0,"read":"whole","date_system":"1900"}

{"sheet":"Forside","index":0,"n_rows":2,"n_cols":1,"rows_kept":2,"cut":false,"hidden":false,"merged":[[1,0,1,6]]}
[]
["Skema til blodtryksmåling"]

{"sheet":"Blodtryksskema","index":1,"n_rows":23,"n_cols":10,"rows_kept":23,"cut":false,"hidden":false,"merged":[[0,1,0,7],[0,8,0,9],[8,1,8,2],[6,1,6,2],[7,1,7,2],[1,1,1,7],[1,8,1,9],[3,1,3,2],[3,9,5,9],[5,1,5,2],[3,3,4,5],[3,6,4,8],[4,1,4,2],[10,9,12,9],[14,1,14,2],[15,1,15,2],[17,1,17,2],[12,1,12,2],[10,3,11,5],[10,6,11,8],[17,3,18,5],[17,6,18,8],[11,1,11,2],[10,1,10,2],[13,1,13,2],[18,1,18,2],[22,1,22,2],[20,1,20,2],[21,1,21,2],[17,9,19,9],[19,1,19,2]]}
[null,"NAVN",null,null,null,null,null,null,"CPR-NR"]
[null,{"$f":"IF(Indtastning!A2=\"\",\"\",\nIF(Indstillinger!B20=\"ja\",\"\",\nIndtastning!A2))","v":""},null,null,null,null,null,null,{"$f":"IF(Indtastning!F2=\"\",\"\",\nIF(Indstillinger!B20=\"ja\",\"\",\nIndtastning!F2))","v":""}]
[]
[null,"Dag 1",null,"MÅLING INDEN\nMORGENMADEN",null,null,"MÅLING INDEN\nAFTENSMADEN",null,null,"GENNEMSNIT"]
[null,{"$f":"IF(Indstillinger!B8=\"\",\"\",\nIF(Indstillinger!B20=\"Ja\",\"\",\nPROPER(TEXT(Indstillinger!B8,\"dddd\"))))","v":"Tirsdag"}]
[null,{"$f":"IF(Indstillinger!B8=\"\",\"\",\nIF(Indstillinger!B20=\"Ja\",\"\",\nPROPER(TEXT(Indstillinger!B8,\"dd-mm-åååå\"))))","v":"24-11-2020"},null,1,2,3,4,5,6]
[null,"DET HØJE\n(SYSTOLISK)",null,{"$f":"IFERROR(IF(Indtastning!C6=\"\",\"\",Indtastning!C6),\"\")","v":""},{"$f":"IFERROR(IF(Indtastning!D6=\"\",\"\",Indtastning!D6),\"\")","v":""},{"$f":"IFERROR(IF(Indtastning!E6=\"\",\"\",Indtastning!E6),\"\")","v":""},{"$f":"IFERROR(IF(Indtastning!F6=\"\",\"\",Indtastning!F6),\"\")","v":""},{"$f":"IFERROR(IF(Indtastning!G6=\"\",\"\",Indtastning!G6),\"\")","v":""},{"$f":"IFERROR(IF(Indtastning!H6=\"\",\"\",Indtastning!H6),\"\")","v":""},{"$f":"IFERROR(AVERAGE(D7:I7),\"\")","v":""}]
[null,"DET LAVE\n(DIATOLISK)",null,{"$f":"IFERROR(IF(Indtastning!C7=\"\",\"\",Indtastning!C7),\"\")","v":""},{"$f":"IFERROR(IF(Indtastning!D7=\"\",\"\",Indtastning!D7),\"\")","v":""},{"$f":"IFERROR(IF(Indtastning!E7=\"\",\"\",Indtastning!E7),\"\")","v":""},{"$f":"IFERROR(IF(Indtastning!F7=\"\",\"\",Indtastning!F7),\"\")","v":""},{"$f":"IFERROR(IF(Indtastning!G7=\"\",\"\",Indtastning!G7),\"\")","v":""},{"$f":"IFERROR(IF(Indtastning!H7=\"\",\"\",Indtastning!H7),\"\")","v":""},{"$f":"IFERROR(IF(Indtastning!I7=\"\",\"\",Indtastning!I7),\"\")","v":""}]
[null,"PULSEN",null,{"$f":"IFERROR(IF(Indtastning!C8=\"\",\"\",Indtastning!C8),\"\")","v":""},{"$f":"IFERROR(IF(Indtastning!D8=\"\",\"\",Indtastning!D8),\"\")","v":""},{"$f":"IFERROR(IF(Indtastning!E8=\"\",\"\",Indtastning!E8),\"\")","v":""},{"$f":"IFERROR(IF(Indtastning!F8=\"\",\"\",Indtastning!F8),\"\")","v":""},{"$f":"IFERROR(IF(Indtastning!G8=\"\",\"\",Indtastning!G8),\"\")","v":""},{"$f":"IFERROR(IF(Indtastning!H8=\"\",\"\",Indtastning!H8),\"\")","v":""},{"$f":"IFERROR(IF(Indtastning!I8=\"\",\"\",Indtastning!I8),\"\")","v":""}]
[]
[null,"Dag 2",null,"MÅLING INDEN\nMORGENMADEN",null,null,"MÅLING INDEN\nAFTENSMADEN",null,null,"GENNEMSNIT"]
[null,{"$f":"IF(Indstillinger!B9=\"\",\"\",\nIF(Indstillinger!B20=\"Ja\",\"\",\nPROPER(TEXT(Indstillinger!B9,\"dddd\"))))","v":"Onsdag"}]
[null,{"$f":"IF(Indstillinger!B9=\"\",\"\",\nIF(Indstillinger!B20=\"Ja\",\"\",\nPROPER(TEXT(Indstillinger!B9,\"dd-mm-åååå\"))))","v":"25-11-2020"},null,1,2,3,4,5,6]
[null,"DET HØJE\n(SYSTOLISK)",null,{"$f":"IFERROR(IF(Indtastning!C12=\"\",\"\",Indtastning!C12),\"\")","v":""},{"$f":"IFERROR(IF(Indtastning!D12=\"\",\"\",Indtastning!D12),\"\")","v":""},{"$f":"IFERROR(IF(Indtastning!E12=\"\",\"\",Indtastning!E12),\"\")","v":""},{"$f":"IFERROR(IF(Indtastning!F12=\"\",\"\",Indtastning!F12),\"\")","v":""},{"$f":"IFERROR(IF(Indtastning!G12=\"\",\"\",Indtastning!G12),\"\")","v":""},{"$f":"IFERROR(IF(Indtastning!H12=\"\",\"\",Indtastning!H12),\"\")","v":""},{"$f":"IFERROR(IF(Indtastning!I12=\"\",\"\",Indtastning!I12),\"\")","v":""}]
[null,"DET LAVE\n(DIATOLISK)",null,{"$f":"IFERROR(IF(Indtastning!C13=\"\",\"\",Indtastning!C13),\"\")","v":""},{"$f":"IFERROR(IF(Indtastning!D13=\"\",\"\",Indtastning!D13),\"\")","v":""},{"$f":"IFERROR(IF(Indtastning!E13=\"\",\"\",Indtastning!E13),\"\")","v":""},{"$f":"IFERROR(IF(Indtastning!F13=\"\",\"\",Indtastning!F13),\"\")","v":""},{"$f":"IFERROR(IF(Indtastning!G13=\"\",\"\",Indtastning!G13),\"\")","v":""},{"$f":"IFERROR(IF(Indtastning!H13=\"\",\"\",Indtastning!H13),\"\")","v":""},{"$f":"IFERROR(IF(Indtastning!I13=\"\",\"\",Indtastning!I13),\"\")","v":""}]
[null,"PULSEN",null,{"$f":"IFERROR(IF(Indtastning!C14=\"\",\"\",Indtastning!C14),\"\")","v":""},{"$f":"IFERROR(IF(Indtastning!D14=\"\",\"\",Indtastning!D14),\"\")","v":""},{"$f":"IFERROR(IF(Indtastning!E14=\"\",\"\",Indtastning!E14),\"\")","v":""},{"$f":"IFERROR(IF(Indtastning!F14=\"\",\"\",Indtastning!F14),\"\")","v":""},{"$f":"IFERROR(IF(Indtastning!G14=\"\",\"\",Indtastning!G14),\"\")","v":""},{"$f":"IFERROR(IF(Indtastning!H14=\"\",\"\",Indtastning!H14),\"\")","v":""},{"$f":"IFERROR(IF(Indtastning!I14=\"\",\"\",Indtastning!I14),\"\")","v":""}]
[]
[null,"Dag 3",null,"MÅLING INDEN\nMORGENMADEN",null,null,"MÅLING INDEN\nAFTENSMADEN",null,null,"GENNEMSNIT"]
[null,{"$f":"IF(Indstillinger!B10=\"\",\"\",\nIF(Indstillinger!B20=\"Ja\",\"\",\nPROPER(TEXT(Indstillinger!B10,\"dddd\"))))","v":"Torsdag"}]
[null,{"$f":"IF(Indstillinger!B10=\"\",\"\",\nIF(Indstillinger!B20=\"Ja\",\"\",\nPROPER(TEXT(Indstillinger!B10,\"dd-mm-åååå\"))))","v":"26-11-2020"},null,1,2,3,4,5,6]
[null,"DET HØJE\n(SYSTOLISK)",null,{"$f":"IFERROR(IF(Indtastning!C18=\"\",\"\",Indtastning!C18),\"\")","v":""},{"$f":"IFERROR(IF(Indtastning!D18=\"\",\"\",Indtastning!D18),\"\")","v":""},{"$f":"IFERROR(IF(Indtastning!E18=\"\",\"\",Indtastning!E18),\"\")","v":""},{"$f":"IFERROR(IF(Indtastning!F18=\"\",\"\",Indtastning!F18),\"\")","v":""},{"$f":"IFERROR(IF(Indtastning!G18=\"\",\"\",Indtastning!G18),\"\")","v":""},{"$f":"IFERROR(IF(Indtastning!H18=\"\",\"\",Indtastning!H18),\"\")","v":""},{"$f":"IFERROR(IF(Indtastning!I18=\"\",\"\",Indtastning!I18),\"\")","v":""}]
[null,"DET LAVE\n(DIATOLISK)",null,{"$f":"IFERROR(IF(Indtastning!C19=\"\",\"\",Indtastning!C19),\"\")","v":""},{"$f":"IFERROR(IF(Indtastning!D19=\"\",\"\",Indtastning!D19),\"\")","v":""},{"$f":"IFERROR(IF(Indtastning!E19=\"\",\"\",Indtastning!E19),\"\")","v":""},{"$f":"IFERROR(IF(Indtastning!F19=\"\",\"\",Indtastning!F19),\"\")","v":""},{"$f":"IFERROR(IF(Indtastning!G19=\"\",\"\",Indtastning!G19),\"\")","v":""},{"$f":"IFERROR(IF(Indtastning!H19=\"\",\"\",Indtastning!H19),\"\")","v":""},{"$f":"IFERROR(IF(Indtastning!I19=\"\",\"\",Indtastning!I19),\"\")","v":""}]
[null,"PULSEN",null,{"$f":"IFERROR(IF(Indtastning!C20=\"\",\"\",Indtastning!C20),\"\")","v":""},{"$f":"IFERROR(IF(Indtastning!D20=\"\",\"\",Indtastning!D20),\"\")","v":""},{"$f":"IFERROR(IF(Indtastning!E20=\"\",\"\",Indtastning!E20),\"\")","v":""},{"$f":"IFERROR(IF(Indtastning!F20=\"\",\"\",Indtastning!F20),\"\")","v":""},{"$f":"IFERROR(IF(Indtastning!G20=\"\",\"\",Indtastning!G20),\"\")","v":""},{"$f":"IFERROR(IF(Indtastning!H20=\"\",\"\",Indtastning!H20),\"\")","v":""},{"$f":"IFERROR(IF(Indtastning!I20=\"\",\"\",Indtastning!I20),\"\")","v":""}]

{"sheet":"TomtSkema","index":2,"n_rows":23,"n_cols":10,"rows_kept":23,"cut":false,"hidden":false,"merged":[[20,1,20,2],[21,1,21,2],[22,1,22,2],[17,1,17,2],[17,3,18,5],[17,6,18,8],[17,9,19,9],[18,1,18,2],[19,1,19,2],[10,9,12,9],[11,1,11,2],[12,1,12,2],[13,1,13,2],[14,1,14,2],[15,1,15,2],[10,6,11,8],[6,1,6,2],[7,1,7,2],[8,1,8,2],[10,1,10,2],[10,3,11,5],[0,1,0,7],[0,8,0,9],[1,1,1,7],[1,8,1,9],[3,1,3,2],[3,3,4,5],[3,6,4,8],[3,9,5,9],[4,1,4,2],[5,1,5,2]]}
[null,"NAVN",null,null,null,null,null,null,"CPR-NR"]
[]
[]
[null,"Dato dag 1",null,"MÅLING INDEN\nMORGENMADEN",null,null,"MÅLING INDEN\nAFTENSMADEN",null,null,"GENNEMSNIT"]
[]
[null,null,null,1,2,3,4,5,6]
[null,"DET HØJE\n(SYSTOLISK)"]
[null,"DET LAVE\n(DIATOLISK)"]
[null,"PULSEN"]
[]
[null,"Dato dag 2",null,"MÅLING INDEN\nMORGENMADEN",null,null,"MÅLING INDEN\nAFTENSMADEN",null,null,"GENNEMSNIT"]
[]
[null,null,null,1,2,3,4,5,6]
[null,"DET HØJE\n(SYSTOLISK)"]
[null,"DET LAVE\n(DIATOLISK)"]
[null,"PULSEN"]
[]
[null,"Dato dag 3",null,"MÅLING INDEN\nMORGENMADEN",null,null,"MÅLING INDEN\nAFTENSMADEN",null,null,"GENNEMSNIT"]
[]
[null,null,null,1,2,3,4,5,6]
[null,"DET HØJE\n(SYSTOLISK)"]
[null,"DET LAVE\n(DIATOLISK)"]
[null,"PULSEN"]

{"sheet":"Indtastning","index":3,"n_rows":20,"n_cols":18,"rows_kept":20,"cut":false,"hidden":false,"merged":[[19,0,19,1],[4,0,4,1],[5,0,5,1],[6,0,6,1],[7,0,7,1],[10,0,10,1],[11,0,11,1],[13,0,13,1],[16,0,16,1],[3,12,3,17],[17,0,17,1],[18,0,18,1],[0,0,0,4],[0,5,0,6],[1,0,1,4],[1,5,1,6],[12,0,12,1]]}
["Patient",null,null,null,null,"CPR-nr."]
["",null,null,null,null,""]
[]
[null,null,null,null,null,null,null,null,null,null,null,null,"Tallene nedenunder bruges til test - Klik kopier & indsæt"]
[{"$f":"IF(Indstillinger!B8=\"\",\"\",Indstillinger!B8)","v":"2020-11-24"},null,1,2,3,4,5,6,"Gns",null,null,null,1,2,3,4,5,6]
["DET HØJE",null,null,null,null,null,null,null,{"$f":"IFERROR(AVERAGE(C6:H6),\"\")","v":""},null,null,null,128,200,30,172,210,120]
["DET LAVE",null,null,null,null,null,null,null,"",null,null,null,100,100,75,26,118,80]
["PULSEN",null,null,null,null,null,null,null,"",null,null,null,10,300,25,74,76,56]
[]
[]
[{"$f":"IF(Indstillinger!B9=\"\",\"\",Indstillinger!B9)","v":"2020-11-25"},null,1,2,3,4,5,6,"Gns",null,null,null,1,2,3,4,5,6]
["DET HØJE",null,null,null,null,null,null,null,{"$f":"IFERROR(AVERAGE(C12:H12),\"\")","v":""},null,null,null,128,200,30,172,210,120]
["DET LAVE",null,null,null,null,null,null,null,"",null,null,null,100,100,75,26,118,80]
["PULSEN",null,null,null,null,null,null,null,"",null,null,null,10,300,25,74,76,56]
[]
[]
[{"$f":"IF(Indstillinger!B10=\"\",\"\",Indstillinger!B10)","v":"2020-11-26"},null,1,2,3,4,5,6,"Gns",null,null,null,1,2,3,4,5,6]
["DET HØJE",null,null,null,null,null,null,null,{"$f":"IFERROR(AVERAGE(C18:H18),\"\")","v":""},null,null,null,128,200,30,172,210,120]
["DET LAVE",null,null,null,null,null,null,null,"",null,null,null,100,100,75,26,118,80]
["PULSEN",null,null,null,null,null,null,null,"",null,null,null,10,300,25,74,76,56]

{"sheet":"Indstillinger","index":4,"n_rows":28,"n_cols":6,"rows_kept":28,"cut":false,"hidden":false,"merged":[[0,0,1,1]]}
["Indstillinger - De gule celler indeholder ikke koder og kan ændres",null,null,null,"Password","Blod"]
[null,null,null,null,"Nyt"]
["Sti til lagringsmappen","F:\\04. Færdigt udviklet ark\\Blodtryk\\PDF","B3",null,"Gentag"]
["PDF \"gemme navn\"",{"$f":"IF(B20=\"Ja\",\"Tomt blodtryksskema\",\nIndtastning!A2&\" - Blodtryksmåling d. \"&TEXT(Indtastning!A5,\"ddmmåååå\"))","v":" - Blodtryksmåling d. 24112020"}]
[]
["Combobox - Vis kort, lang vejl. eller datopick",null,"B6"]
[]
["Dato måledag 1","2020-11-24",{"$f":"PROPER(TEXT(B8,\"dddd\"))","v":"Tirsdag"},"B8 - C8"]
["Dato måledag 2",{"$f":"B8+1","v":"2020-11-25"},{"$f":"PROPER(TEXT(B9,\"dddd\"))","v":"Onsdag"},"B9 - C9"]
["Dato måledag 3",{"$f":"B9+1","v":"2020-11-26"},"Torsdag","B10 - C10"]
[]
["Lægens mail til modtagelse af skema","victoriaprivate260@outlook.com","B12"]
["Email Subject",{"$f":"B4","v":" - Blodtryksmåling d. 24112020"}]
[]
["Skal skemaet bruge d.d.",{"$f":"IF(SUM(Indtastning!I6:I8)+SUM(Indtastning!I12:I14)+SUM(Indtastning!I18:I20)=0,\"Ja\",\"Nej\")","v":"Ja"},"B15"]
[]
[]
["Vis patientvejledningen ved næste start op","Ja","B18"]
[]
["Udskriv tomt skema",null,"B20"]
[]
["Er skemaet udfyldt med måletal",{"$f":"IF(SUM(Indtastning!I6:I8)+SUM(Indtastning!I12:I14)+SUM(Indtastning!I18:I20)<>0,\"Ja\",\"Nej\")","v":"Nej"},"B22"]
["Er dag 1 udfyldt med måletal",{"$f":"IF(SUM(Indtastning!I6:I8)<>0,\"Ja\",\"Nej\")","v":"Nej"},"B23"]
["Er dag 2 udfyldt med måletal",{"$f":"IF(SUM(Indtastning!I12:I14)<>0,\"Ja\",\"Nej\")","v":"Nej"},"B24"]
["Er dag 3 udfyldt med måletal",{"$f":"IF(SUM(Indtastning!I18:I20)<>0,\"Ja\",\"Nej\")","v":"Nej"},"B25"]
["Er patienten udfyldt",{"$f":"IF(OR(Indtastning!A2<>\"\",Indtastning!F2<>\"\"),\"Ja\",\"Nej\")","v":"Nej"},"B26"]
[]
["Er både patienten og måletal udfyldt",{"$f":"IF(AND(B22=\"Nej\",B26=\"Nej\"),\"Nej\",\"Ja\")","v":"Nej"},"B28"]

{"sheet":"Patientvejledning","index":5,"n_rows":19,"n_cols":6,"rows_kept":19,"cut":false,"hidden":false,"merged":[]}
[]
[null,"Patientvejledning","Patientvejledning","Patientvejledning","Patientvejledning","Patientvejledning"]
[]
[null,"Din læge har bedt dig om at måle dit blodtryk","Før blodtryksmålingen","• Du skal anbringe manchetten på overarmen et par","Selve blodtryksmålingen","Efter blodtryksmålingen"]
[null,"i dine vante omgivelser.","• Du skal måle dit blodtryk 2 gange om dagen.","   centimeter over albuebøjningen med luftslangen."]
[null,null,"• Du skal måle blodtrykket lige før morgenmaden","   i midten og nedad.",null,"• Når blodtryksmålingen er færdig, står der tre tal"]
[null,"Denne vejledning viser, hvordan du skal måle","   og lige før aftensmaden.","• Manchetten må ikke stramme.",null,"   på skærmen."]
[null,"dit blodtryk hjemme.","• Du skal måle 3 blodtryk, hver gang du måler","• En finger skal ubesværet kunne være mellem",null,"   1. Det høje blodtryk (systolisk)."]
[null,null,"   blodtrykket.","   manchet og overarmen.",null,"   2. Det lave blodtryk (diastolisk)."]
[null,"For at få en brugbar blodtryksmåling er det vigtig","• Du skal måle blodtrykket 3 dage i træk",null,"• Du skal tænde for apparatet som anvist af lægen.","   3. Pulsen (antal pulsslag per minut). "]
[null,"at følge og overholde nedenstående vejledning.",null,null,"• Du skal hvile på stolen i 5 minutter og have lejlighed","• Du skal måle 3 gange og notere alle 3 blodtryk"]
[null,null,null,null,"   til at sidde uforstyrret inden målingen.","   og pulsen i skemaet."]
[null,"Du må ikke ryge i de sidste 30 minutter før du måler","Brug måleapparatet korrekt",null,"• Du må ikke tale eller bevæge dig under målingen.","• Når du har målt 3 gange og er færdig med at"]
[null,"blodtrykket.","• Du skal måle blodtrykket på den arm din læge har",null,"• Du skal trykke på startknappen som anvist af lægen.","   bruge apparatet, vil det slukke automatisk efter"]
[null,null,"   anvist dig.",null,"• Apparatet foretager selv målingen.","   et par minutter."]
[null,"Du må ikke måle blodtrykket på andre i den periode,","• Du skal blotte den arm, du skal måle blodtryk på,",null,null,"• Apparatet henstilles forsvarligt indtil næste måling"]
[null,"hvor du har apparatet hjemme.","   og der må ikke være tøj, der strammer på armen.","• Du skal placere armen på bordet med håndfladen"]
[null,null,"• Du skal sidde bekvemt tilbagelænet med rygstøtte i","   opad med manchetten på højde med hjertet."]
[null,null,"   en stol uden korslagte ben ved siden af et bord.","• Du kan eventuelt lægge en pude under armen."]